fUSD/lending_fUSD_20240612
["ID","MTS","AMOUNT","RATE_DAILY","PERIOD"]
[329311507,1718236235028,-155.0,0.0001405,2]
[329311508,1718236235041,-895.95924622,0.0001405,2]
[329311509,1718236235054,-1068.08547647,0.00014051,2]
[329311510,1718236235067,-792.73133039,0.00014052,2]
[329311511,1718236235083,-155.36,0.00014054,2]
[329311512,1718236235102,-150.0,0.00014097,2]
[329311513,1718236235120,-156.90145973,0.000141,2]
[329311514,1718236235133,-155.36,0.00014113,2]
[329311516,1718236235145,-651.0,0.00014172,2]
[329311518,1718236235159,-499.99,0.00014172,2]
[329311520,1718236235173,-155.36,0.00014172,2]
[329311522,1718236235199,-3406.39,0.00014172,2]
[329311524,1718236235212,-156.90145973,0.00014174,2]
[329311526,1718236235233,-732.44,0.00014221,2]
[329311528,1718236235253,-155.36,0.00014231,2]
[329311530,1718236235266,-327.28,0.00014235,2]
[329311531,1718236235290,-3140.95,0.00014235,2]
[329311532,1718236235304,-156.90145973,0.00014248,2]
[329311533,1718236235317,-155.36,0.00014291,2]
[329311534,1718236235330,-156.90145973,0.00014323,2]
[329311535,1718236235341,-155.36,0.0001435,2]
[329311536,1718236235354,-156.90145973,0.00014397,2]
[329311537,1718236235369,-356.62,0.00014413,2]
[329311538,1718236235386,-156.90145973,0.00014471,2]
[329311539,1718236235402,-423.39893674,0.00014512,2]
[329311540,1718236235419,-2146.90543146,0.00014513,2]
[329311541,1718236235431,-155.0,0.0001452,2]
[329311542,1718236235445,-1342.07599899,0.00014528,2]
[329311543,1718236235470,-3809.27693291,0.00014529,2]
[329311544,1718236235490,-156.90145973,0.00014545,2]
[329311545,1718236235521,-1256.43,0.00014601,2]
[329311546,1718236235534,-156.90145973,0.0001462,2]
[329311547,1718236235554,-156.90145973,0.00014694,2]
[329311548,1718236235575,-156.90145973,0.00014768,2]
[329311549,1718236235585,-156.90145973,0.00014842,2]
[329311550,1718236235631,-1000.0,0.00014889,2]
[329311551,1718236235649,-156.90145973,0.00014917,2]
[329311552,1718236235693,-173.16,0.0001493,2]
[329311553,1718236235733,-156.90145973,0.00014991,2]
[329311554,1718236235755,-3395.13,0.00014998,2]
[329311555,1718236235769,-156.62138287,0.00014998,2]
[329311556,1718236235818,-155.19970267,0.00014998,2]
[329311557,1718236235831,-291.07893599,0.00014998,2]
[329311558,1718236235846,-824.50033056,0.00014998,2]
[329311559,1718236235875,-237.7692352,0.00014998,2]
[329311560,1718236235915,-155.0,0.00014998,2]
[329311561,1718236235929,-155.9460646,0.00014998,2]
[329311562,1718236235957,-406.08823349,0.00014998,2]
[329311563,1718236235975,-155.0,0.00014998,2]
[329311564,1718236235989,-155.0,0.00014998,2]
[329311565,1718236236032,-14544.85415988,0.00014999,2]
[329311566,1718236236061,-90663.29009871,0.00015,2]
[329311567,1718236236138,-2820.8866843,0.00015,2]
[329311583,1718236241389,-195.86472205,0.00014044,2]
[329311585,1718236241409,-155.37027795,0.00014044,2]
[329311637,1718236242428,-637.36105244,0.00014044,2]
[329311639,1718236242444,-13369.84027518,0.00015,2]
[329311641,1718236242458,-50934.42255087,0.00015,2]
[329311643,1718236242476,-89935.02949168,0.00015,2]
[329311645,1718236242488,-156.90145973,0.00015065,2]
[329311646,1718236242503,-180.797543,0.00015165,2]
[329311648,1718236242515,-602.15,0.00015198,2]
[329311650,1718236242526,-1256.43,0.00015297,2]
[329311652,1718236242544,-1256.43,0.00015992,2]
[329311655,1718236242573,-265.17,0.00016169,2]
[329311657,1718236242589,-3242.43,0.00016248,2]
[329311659,1718236242603,-500.0,0.00016492,2]
[329311661,1718236242632,-1256.43,0.00016687,2]
[329311662,1718236242644,-1000.0,0.0001675,2]
[329311663,1718236242655,-602.15,0.00016886,2]
[329311665,1718236242681,-14441.313,0.00017009,2]
[329311667,1718236242698,-326.74131311,0.0001712,2]
[329311669,1718236242708,-404.93890684,0.0001712,2]
[329311671,1718236242725,-311.62359114,0.0001712,2]
[329311673,1718236242735,-2110.17937806,0.0001712,2]
[329311675,1718236242747,-12265.38,0.00017123,2]
[329311677,1718236242759,-4581.99412309,0.00017246,2]
[329311679,1718236242769,-628.54232723,0.00017253,2]
[329311681,1718236242779,-307.35696763,0.00017255,2]
[329311683,1718236242790,-581.20048005,0.00017256,2]
[329311685,1718236242801,-7492.99233838,0.00017257,2]
[329311687,1718236242812,-365.45085217,0.00017258,2]
[329311688,1718236242827,-298.61092271,0.00017259,2]
[329311690,1718236242838,-180.79754293,0.0001727,2]
[329311692,1718236242853,-265.17,0.00018433,2]
[329311693,1718236242866,-602.15,0.00018575,2]
[329311695,1718236242877,-1000.0,0.00018611,2]
[329311697,1718236242893,-253.13001085,0.00018738,2]
[329311699,1718236242903,-3242.43,0.00018988,2]
[329311700,1718236242913,-180.79754293,0.00019375,2]
[329311703,1718236242924,-319.13261858,0.00019441,2]
[329311705,1718236242936,-157.27781116,0.0001945,2]
[329311707,1718236242951,-25219.20449217,0.00019451,2]
[329311709,1718236242966,-151209.05295858,0.00019451,2]
[329311710,1718236242997,-3762.41856736,0.00019451,2]
[329311712,1718236243010,-4650.0,0.00019451,2]
[329311714,1718236243024,-1961.98440482,0.00019451,2]
[329311716,1718236243038,-763.34514867,0.00019451,2]
[329311719,1718236243052,-484.74528427,0.00019451,2]
[329311721,1718236243067,-508.58444147,0.00019451,2]
[329311724,1718236243102,-910.0,0.00019451,2]
[329311725,1718236243118,-588.209208,0.00019451,2]
[329311739,1718236243499,-142169.62360312,0.00019451,2]
[329311741,1718236243510,-160.72275664,0.000199,2]
[329311742,1718236243530,-229.98373696,0.000199,2]
[329311744,1718236243542,-1982.3429442,0.0002,2]
[329311747,1718236243569,-3895.51366502,0.0002,2]
[329311749,1718236243582,-1892.69073827,0.0002,7]
[329311751,1718236243596,-6266.12845642,0.0002,2]
[329311753,1718236243627,-226.74152349,0.000201,2]
[329311754,1718236243638,-356.62,0.00020179,2]
[329311756,1718236243651,-602.15,0.00020264,2]
[329311758,1718236243663,-1000.0,0.00020472,2]
[329311760,1718236243675,-265.17,0.00020697,2]
[329311762,1718236243689,-180.79754293,0.0002148,2]
[329311764,1718236243702,-151.91,0.00021918,2]
[329311766,1718236243716,-157.55,0.00021918,2]
[329311768,1718236243733,-250.0,0.00021918,2]
[329311771,1718236243756,-1000.0,0.00022333,2]
[329311774,1718236243792,-571.0,0.000228,2]
[329311777,1718236243819,-2423.0,0.000229,2]
[329311779,1718236243842,-265.17,0.0002296,2]
[329311782,1718236243874,-160.72275663,0.00023226,2]
[329311784,1718236243920,-696.66,0.00023234,2]
[329311785,1718236243933,-696.66,0.0002324,2]
[329311787,1718236243955,-696.66,0.00023247,2]
[329311789,1718236243978,-696.66,0.00023253,2]
[329311791,1718236243990,-696.66,0.00023259,2]
[329311792,1718236244005,-696.66,0.00023265,2]
[329311794,1718236244029,-696.66,0.00023271,2]
[329311796,1718236244039,-696.66,0.00023277,2]
[329311799,1718236244064,-696.66,0.00023283,2]
[329311802,1718236244090,-696.66,0.00023289,2]
[329311804,1718236244119,-696.66,0.00023295,2]
[329311806,1718236244180,-696.66,0.00023302,2]
[329311808,1718236244201,-696.66,0.00023308,2]
[329311809,1718236244216,-696.66,0.00023314,2]
[329311811,1718236244231,-696.66,0.0002332,2]
[329311813,1718236244244,-696.66,0.00023326,2]
[329311814,1718236244261,-696.66,0.00023332,2]
[329311816,1718236244275,-696.66,0.00023338,2]
[329311818,1718236244292,-696.66,0.00023344,2]
[329311820,1718236244303,-696.66,0.0002335,2]
[329311822,1718236244315,-180.79754293,0.00023585,2]
[329311824,1718236244328,-6516.47955387,0.00024,10]
[329311827,1718236244350,-500.0,0.00024109,2]
[329311829,1718236244362,-500.0,0.00024109,2]
[329311831,1718236244374,-500.0,0.00024109,2]
[329311833,1718236244415,-154.5,0.00024384,2]
[329311836,1718236244441,-310.5,0.00024384,2]
[329311837,1718236244456,-168.46138251,0.00024799,2]
[329311839,1718236244468,-168.46138251,0.00024799,2]
[329311841,1718236244482,-168.46138251,0.00024799,2]
[329311843,1718236244500,-168.46138251,0.00024799,2]
[329311845,1718236244511,-168.46138251,0.00024799,2]
[329311846,1718236244531,-168.46138251,0.00024799,2]
[329311848,1718236244544,-160.00754165,0.00024955,2]
[329311850,1718236244561,-168.46138251,0.00024955,2]
[329311852,1718236244576,-150.19,0.0002499,2]
[329311856,1718236244648,-833.6,0.00025,2]
[329311858,1718236244661,-706.94373209,0.00025,2]
[329311860,1718236244675,-6944.44835625,0.00025,2]
[329311863,1718236244687,-265.17,0.00025224,2]
[329311865,1718236244702,-180.79754293,0.0002569,2]
[329311868,1718236244726,-156.9803897,0.00025897,2]
[329311870,1718236244763,-3631.86265365,0.00026,5]
[329311871,1718236244776,-156.9803897,0.00026339,2]
[329311874,1718236244803,-160.72275663,0.00026553,2]
[329311876,1718236244854,-160.00754165,0.00026603,2]
[329311878,1718236244895,-168.46138251,0.00026603,2]
[329311882,1718236244961,-155.0,0.00027,2]
[329311884,1718236244974,-221.49,0.00027123,2]
[329311885,1718236244985,-150.0,0.00027397,2]
[329311887,1718236244998,-156.9803897,0.00027434,2]
[329311889,1718236245027,-265.17,0.00027488,2]
[329311890,1718236245048,-150.0,0.00027565,2]
[329311892,1718236245063,-150.0,0.00027581,2]
[329311895,1718236245077,-156.9803897,0.00027617,2]
[329311897,1718236245092,-150.0,0.00027754,2]
[329311899,1718236245120,-150.0,0.00027756,2]
[329311900,1718236245142,-200.0,0.00027775,2]
[329311902,1718236245162,-500.0,0.00027775,2]
[329311904,1718236245175,-200.0,0.00027776,2]
[329311906,1718236245190,-1000.0,0.00027776,30]
[329311908,1718236245226,-500.0,0.00027776,2]
[329311909,1718236245239,-500.0,0.00027776,2]
[329311911,1718236245255,-200.0,0.00027776,2]
[329311913,1718236245266,-150.0,0.00027777,2]
[329311915,1718236245280,-180.79754293,0.00027795,2]
[329311917,1718236245292,-150.0,0.00027828,2]
[329311919,1718236245303,-1000.0,0.0002786,2]
[329311920,1718236245327,-1149.0556,0.0002786,2]
[329311930,1718236245498,-156.9803897,0.00027891,2]
[329311932,1718236245510,-1095.614,0.00027895,2]
[329311935,1718236245533,-358.0,0.00027895,2]
[329311937,1718236245550,-1820.0,0.00027895,2]
[329311938,1718236245568,-724.703,0.00027895,2]
[329311939,1718236245583,-1265.0,0.00027895,2]
[329311941,1718236245616,-165.0,0.00027895,2]
[329311943,1718236245631,-150.0,0.00027895,2]
[329311945,1718236245645,-808.0,0.00027895,2]
[329311947,1718236245657,-446.0,0.00027895,2]
[329311949,1718236245673,-2403.0,0.00027895,2]
[329311951,1718236245685,-551.88,0.00027895,2]
[329311952,1718236245697,-1304.0,0.00027895,2]
[329311954,1718236245713,-3177.0,0.00027895,2]
[329311956,1718236245729,-1978.0,0.00027895,2]
[329311958,1718236245746,-445.713,0.00027895,2]
[329311961,1718236245770,-290.0,0.00027895,2]
[329311963,1718236245792,-5155.0,0.00027895,2]
[329311965,1718236245808,-605.062,0.00027895,2]
[329311967,1718236245826,-150.192,0.00027895,2]
[329311969,1718236245839,-5744.162,0.00027895,2]
[329311971,1718236245850,-1150.09,0.00027895,2]
[329311973,1718236245864,-283.843,0.00027895,2]
[329311975,1718236245879,-2988.80474076,0.00027898,2]
[329311977,1718236245895,-161.16864255,0.00027898,2]
[329311979,1718236245907,-156.9803897,0.00027943,2]
[329311981,1718236245919,-203.46,0.00027981,2]
[329311984,1718236245938,-500.0,0.00027994,30]
[329311986,1718236245950,-151.0,0.00027995,7]
[329311988,1718236245963,-500.0,0.00027997,30]
[329311990,1718236245974,-207.3903223,0.00027998,2]
[329311992,1718236245984,-14363.0306777,0.00027998,2]
[329311994,1718236245995,-10804.7631181,0.00027998,2]
[329311996,1718236246006,-202558.3894861,0.00027998,2]
[329311998,1718236246016,-740.42831507,0.00027998,2]
[329312000,1718236246028,-14383.22907979,0.00028,2]
[329312002,1718236246038,-399.99999901,0.00028,2]
[329312004,1718236246048,-3000.0,0.00028,2]
[329312006,1718236246058,-150.0,0.00028003,2]
[329312008,1718236246068,-152.448144,0.00028017,7]
[329312010,1718236246088,-165.354322,0.00028017,7]
[329312012,1718236246100,-151.0,0.00028017,7]
[329312013,1718236246114,-151.0,0.00028017,7]
[329312016,1718236246125,-151.0,0.00028017,7]
[329312018,1718236246135,-151.0,0.00028017,7]
[329312020,1718236246147,-151.0,0.00028017,7]
[329312021,1718236246160,-151.0,0.00028017,7]
[329312024,1718236246176,-151.0,0.00028017,7]
[329312026,1718236246186,-151.0,0.00028017,7]
[329312027,1718236246197,-151.0,0.00028017,7]
[329312029,1718236246207,-182.04087,0.00028017,7]
[329312032,1718236246218,-160.44958268,0.00028018,2]
[329312034,1718236246228,-152.8051409,0.00028038,2]
[329312036,1718236246239,-150.0,0.00028056,2]
[329312038,1718236246250,-2988.80474067,0.0002808,2]
[329312040,1718236246260,-150.0,0.00028118,2]
[329312042,1718236246272,-150.0,0.00028164,2]
[329312044,1718236246282,-150.0,0.000282,2]
[329312046,1718236246292,-160.00754165,0.00028252,2]
[329312048,1718236246302,-168.46138251,0.00028252,2]
[329312050,1718236246311,-150.0,0.00028254,2]
[329312051,1718236246321,-2988.80474067,0.00028262,2]
[329312053,1718236246331,-1007.92,0.000283,2]
[329312055,1718236246342,-624.52,0.000283,2]
[329312057,1718236246352,-163.20656799,0.00028318,2]
[329312059,1718236246362,-156.9803897,0.00028368,2]
[329312061,1718236246372,-2988.80474067,0.00028444,2]
[329312063,1718236246383,-150.0,0.00028545,2]
[329312065,1718236246393,-150.0,0.00028571,2]
[329312067,1718236246403,-150.0,0.00028582,2]
[329312069,1718236246415,-2988.80474067,0.00028626,2]
[329312071,1718236246440,-150.0,0.00028636,2]
[329312073,1718236246451,-150.0,0.00028642,2]
[329312075,1718236246462,-5800.0,0.0002867,2]
[329312077,1718236246472,-5800.0,0.00028678,2]
[329312079,1718236246485,-5800.0,0.00028687,2]
[329312081,1718236246495,-151.0,0.00028687,7]
[329312083,1718236246506,-151.0,0.00028687,7]
[329312085,1718236246517,-151.0,0.00028687,7]
[329312087,1718236246528,-151.0,0.00028687,7]
[329312089,1718236246538,-151.0,0.00028687,7]
[329312091,1718236246550,-151.0,0.00028687,7]
[329312093,1718236246561,-151.0,0.00028687,7]
[329312094,1718236246571,-5800.0,0.00028695,2]
[329312096,1718236246582,-150.0,0.0002872,2]
[329312098,1718236246593,-150.0,0.00028751,2]
[329312100,1718236246604,-156.9803897,0.0002876,2]
[329312102,1718236246632,-1000.0,0.00028767,5]
[329312104,1718236246642,-1000.0,0.00028767,5]
[329312106,1718236246652,-1000.0,0.00028767,5]
[329312108,1718236246662,-1000.0,0.00028767,5]
[329312110,1718236246673,-1000.0,0.00028767,5]
[329312112,1718236246683,-1000.0,0.00028767,5]
[329312114,1718236246694,-1000.0,0.00028767,5]
[329312116,1718236246703,-1000.0,0.00028767,5]
[329312118,1718236246714,-932.15653072,0.00028767,5]
[329312120,1718236246724,-150.0,0.0002877,2]
[329312122,1718236246734,-152.0,0.00028803,3]
[329312124,1718236246747,-2026.98347692,0.00028808,2]
[329312126,1718236246759,-2988.80474067,0.00028808,2]
[329312128,1718236246769,-150.0,0.00028813,2]
[329312130,1718236246779,-150.0,0.00028827,2]
[329312132,1718236246789,-150.0,0.00028837,2]
[329312134,1718236246799,-150.0,0.00028839,2]
[329312136,1718236246809,-150.0,0.00028872,2]
[329312138,1718236246819,-930.99721425,0.00028908,2]
[329312140,1718236246829,-11698.70522848,0.0002893,7]
[329312142,1718236246839,-156.9803897,0.00028963,2]
[329312144,1718236246850,-2988.80474067,0.0002899,2]
[329312146,1718236246862,-1000.0,0.00028995,7]
[329312148,1718236246873,-24413.91236215,0.00028999,2]
[329312150,1718236246885,-900.0,0.00029,30]
[329312152,1718236246895,-500.0,0.00029,2]
[329312154,1718236246905,-3000.0,0.00029,7]
[329312156,1718236246915,-4173.19345114,0.00029,2]
[329312158,1718236246925,-714.70400096,0.00029,2]
[329312161,1718236246935,-1489.8087426,0.00029,2]
[329312163,1718236246946,-155.0,0.00029,7]
[329312165,1718236246957,-383.08911902,0.00029,2]
[329312167,1718236246967,-3067.39,0.00029,3]
[329312169,1718236246977,-150.0,0.00029001,2]
[329312171,1718236246988,-150.0,0.00029016,2]
[329312173,1718236246997,-150.0,0.0002906,2]
[329312175,1718236247007,-150.0,0.00029082,2]
[329312177,1718236247019,-305.0,0.000291,2]
[329312179,1718236247028,-150.0,0.000291,6]
[329312181,1718236247038,-150.0,0.000291,6]
[329312183,1718236247047,-160.0,0.00029126,2]
[329312185,1718236247058,-500.0,0.00029134,3]
[329312187,1718236247067,-2988.80474067,0.00029172,2]
[329312189,1718236247077,-150.0,0.00029186,2]
[329312191,1718236247087,-150.0,0.00029221,2]
[329312193,1718236247096,-150.0,0.00029231,2]
[329312195,1718236247109,-1500.0,0.00029315,2]
[329312197,1718236247119,-150.0,0.00029315,2]
[329312199,1718236247129,-150.0,0.00029338,2]
[329312201,1718236247139,-150.19,0.00029344,2]
[329312203,1718236247150,-2988.80474067,0.00029354,2]
[329312205,1718236247159,-1500.0,0.00029371,2]
[329312207,1718236247170,-150.0,0.00029373,2]
[329312209,1718236247179,-7500.0,0.00029389,2]
[329312211,1718236247194,-150.0,0.00029394,2]
[329312213,1718236247204,-500.0,0.00029399,30]
[329312215,1718236247213,-4917.53,0.00029399,2]
[329312217,1718236247223,-160.0,0.000294,2]
[329312219,1718236247233,-1762.1002,0.000294,2]
[329312221,1718236247243,-163.72084607,0.000294,2]
[329312223,1718236247253,-436.7004128,0.000294,2]
[329312225,1718236247263,-150.0,0.000294,6]
[329312227,1718236247272,-169.5349106,0.000294,2]
[329312229,1718236247283,-150.0,0.00029409,2]
[329312231,1718236247293,-1500.0,0.00029419,2]
[329312233,1718236247303,-150.0,0.00029432,2]
[329312235,1718236247312,-150.0,0.00029449,2]
[329312237,1718236247323,-150.0,0.00029469,2]
[329312239,1718236247333,-150.0,0.0002947,2]
[329312241,1718236247343,-5000.0,0.00029477,2]
[329312243,1718236247352,-150.0,0.00029482,2]
[329312245,1718236247363,-1000.0,0.00029489,13]
[329312247,1718236247372,-219209.17712921,0.00029489,2]
[329312249,1718236247382,-151.0,0.00029489,7]
[329312251,1718236247392,-151.0,0.00029489,7]
[329312253,1718236247402,-151.0,0.00029489,7]
[329312255,1718236247412,-265.08547,0.00029489,7]
[329312257,1718236247425,-151.0,0.00029489,7]
[329312259,1718236247436,-151.0,0.00029489,7]
[329312261,1718236247447,-151.0,0.00029489,7]
[329312263,1718236247458,-151.0,0.00029489,7]
[329312265,1718236247470,-151.0,0.00029489,7]
[329312267,1718236247480,-151.0,0.00029489,7]
[329312270,1718236247499,-151.0,0.00029489,7]
[329312272,1718236247512,-151.0,0.00029489,7]
[329312274,1718236247524,-151.0,0.00029489,7]
[329312276,1718236247536,-150.19,0.0002949,2]
[329312278,1718236247547,-150.19,0.0002949,2]
[329312280,1718236247559,-150.19,0.0002949,2]
[329312282,1718236247570,-150.19,0.0002949,2]
[329312284,1718236247582,-150.19,0.0002949,2]
[329312286,1718236247594,-319.13261858,0.0002949,2]
[329312288,1718236247629,-319.13261858,0.0002949,2]
[329312290,1718236247645,-500.0,0.00029497,30]
[329312292,1718236247656,-159.12531189,0.00029498,2]
[329312294,1718236247666,-225.24645646,0.00029498,2]
[329312296,1718236247679,-2485.09344287,0.00029498,2]
[329312298,1718236247691,-865.36098931,0.00029498,3]
[329312300,1718236247701,-1270.18852319,0.00029498,2]
[329312303,1718236247714,-187.57139828,0.00029498,2]
[329312305,1718236247725,-2983.80478246,0.00029498,2]
[329312307,1718236247736,-155.0,0.00029498,2]
[329312309,1718236247746,-1023.30429,0.00029498,2]
[329312311,1718236247757,-297.66558178,0.00029498,2]
[329312313,1718236247767,-282.66487847,0.00029498,2]
[329312315,1718236247781,-289.11778841,0.00029498,2]
[329312317,1718236247791,-5569.67282579,0.00029498,2]
[329312319,1718236247801,-165.82425864,0.00029498,90]
[329312321,1718236247811,-359.02126665,0.00029498,10]
[329312323,1718236247821,-298.05454532,0.00029498,2]
[329312325,1718236247831,-652.07814265,0.00029498,2]
[329312327,1718236247841,-326.19007849,0.00029498,2]
[329312329,1718236247851,-326.06894527,0.00029498,2]
[329312331,1718236247863,-2285.01619169,0.00029498,2]
[329312332,1718236247873,-155.0,0.00029498,2]
[329312333,1718236247882,-537.72037607,0.00029498,2]
[329312334,1718236247892,-228.21060426,0.00029498,2]
[329312335,1718236247903,-490.42437112,0.00029498,2]
[329312336,1718236247914,-2370.40737101,0.00029498,2]
[329312337,1718236247923,-177.873689,0.00029498,2]
[329312338,1718236247932,-158.43339289,0.00029498,2]
[329312339,1718236247942,-164.57038171,0.00029498,2]
[329312340,1718236247952,-209.41336991,0.00029498,2]
[329312341,1718236247961,-327.03263673,0.00029498,2]
[329312342,1718236247970,-158.96899296,0.00029498,2]
[329312343,1718236247991,-155.31014822,0.00029498,2]
[329312346,1718236248002,-263.8016458,0.00029498,2]
[329312348,1718236248014,-5000.0,0.00029498,2]
[329312350,1718236248024,-155.0,0.00029498,2]
[329312352,1718236248034,-947.00231839,0.00029498,2]
[329312354,1718236248044,-3063.72776014,0.00029498,2]
[329312356,1718236248055,-270.06932839,0.00029498,2]
[329312358,1718236248065,-941.12648746,0.00029498,2]
[329312360,1718236248076,-156.78502539,0.00029498,2]
[329312362,1718236248087,-155.0,0.00029498,2]
[329312364,1718236248097,-187.78957433,0.00029498,2]
[329312366,1718236248110,-235.10641019,0.00029498,2]
[329312368,1718236248122,-506.64833036,0.00029498,2]
[329312370,1718236248133,-210.90589226,0.00029498,2]
[329312372,1718236248143,-184.75177569,0.00029498,2]
[329312374,1718236248153,-155.11711386,0.00029498,2]
[329312376,1718236248163,-155.0,0.00029498,2]
[329312378,1718236248172,-296.81340302,0.00029498,2]
[329312380,1718236248182,-259.01814825,0.00029498,2]
[329312382,1718236248195,-2006.66539938,0.00029498,2]
[329312384,1718236248205,-155.0,0.00029498,2]
[329312386,1718236248215,-155.0,0.00029498,2]
[329312389,1718236248229,-714.53886713,0.00029498,2]
[329312391,1718236248239,-1276.54298382,0.00029498,2]
[329312393,1718236248250,-157.24016084,0.00029498,2]
[329312395,1718236248260,-155.0,0.00029498,2]
[329312397,1718236248271,-406.88424522,0.00029498,2]
[329312399,1718236248281,-1052.73516277,0.00029498,2]
[329312401,1718236248291,-500.0,0.00029498,30]
[329312403,1718236248301,-241.57623348,0.00029498,30]
[329312405,1718236248312,-155.0,0.00029499,2]
[329312407,1718236248323,-13310.33195046,0.00029499,2]
[329312409,1718236248333,-150.0,0.00029499,2]
[329312411,1718236248343,-500.0,0.00029499,30]
[329312413,1718236248354,-500.0,0.00029499,30]
[329312415,1718236248366,-500.0,0.00029499,30]
[329312417,1718236248376,-500.0,0.00029499,30]
[329312419,1718236248387,-500.0,0.00029499,30]
[329312421,1718236248399,-500.0,0.00029499,30]
[329312423,1718236248411,-500.0,0.00029499,30]
[329312426,1718236248423,-642.24,0.00029499,30]
[329312427,1718236248434,-1901519.4,0.000295,5]
[329312429,1718236248445,-2647.8,0.000295,2]
[329312431,1718236248457,-6713.73,0.000295,2]
[329312433,1718236248468,-1861.38,0.000295,2]
[329312434,1718236248478,-9356.59725776,0.000295,2]
[329312437,1718236248489,-151.0,0.000295,7]
[329312439,1718236248500,-151.0,0.000295,7]
[329312441,1718236248511,-223.173907,0.000295,7]
[329312443,1718236248522,-151.0,0.000295,7]
[329312445,1718236248539,-151.0,0.000295,7]
[329312446,1718236248550,-151.0,0.000295,7]
[329312448,1718236248561,-151.0,0.000295,7]
[329312450,1718236248577,-151.0,0.000295,7]
[329312452,1718236248590,-151.0,0.000295,7]
[329312454,1718236248628,-264.1,0.000295,10]
[329312455,1718236248640,-151.0,0.000295,7]
[329312458,1718236248654,-151.0,0.000295,7]
[329312460,1718236248665,-156.9803897,0.0002951,2]
[329312462,1718236248678,-150.0,0.00029512,2]
[329312464,1718236248691,-150.0,0.00029516,2]
[329312466,1718236248702,-300.0,0.00029519,2]
[329312468,1718236248712,-150.0,0.00029529,2]
[329312470,1718236248723,-156.9803897,0.00029532,2]
[329312472,1718236248733,-150.0,0.00029535,2]
[329312474,1718236248744,-151.0,0.00029535,2]
[329312476,1718236248762,-2988.80474067,0.00029536,2]
[329312477,1718236248782,-150.0,0.0002956,2]
[329312480,1718236248797,-2500.0,0.00029566,2]
[329312482,1718236248809,-151.0,0.00029573,6]
[329312484,1718236248819,-150.0,0.000296,6]
[329312486,1718236248830,-150.0,0.000296,6]
[329312488,1718236248865,-150.0,0.00029633,2]
[329312490,1718236248879,-436.70041278,0.0002965,2]
[329312492,1718236248913,-169.53491058,0.0002965,2]
[329312493,1718236248923,-300.0,0.00029658,2]
[329312495,1718236248933,-11671.0723041,0.000297,2]
[329312497,1718236248960,-4000.0,0.000297,2]
[329312499,1718236248973,-4000.0,0.000297,2]
[329312500,1718236249020,-4000.0,0.000297,2]
[329312502,1718236249032,-4000.0,0.000297,2]
[329312505,1718236249057,-4000.0,0.000297,2]
[329312507,1718236249071,-4000.0,0.000297,2]
[329312509,1718236249082,-150.19,0.00029708,2]
[329312511,1718236249093,-1500.0,0.00029718,2]
[329312513,1718236249110,-2988.80474067,0.00029718,2]
[329312515,1718236249128,-150.0,0.00029721,2]
[329312517,1718236249141,-150.0,0.00029729,2]
[329312520,1718236249168,-150.0,0.00029742,2]
[329312521,1718236249179,-265.17,0.00029752,2]
[329312524,1718236249194,-150.0,0.00029783,2]
[329312526,1718236249212,-151.0,0.00029786,6]
[329312528,1718236249222,-300.0,0.00029794,2]
[329312530,1718236249249,-1565.74596654,0.000298,7]
[329312532,1718236249260,-3802.0,0.000298,10]
[329312534,1718236249272,-155.0,0.000298,2]